bitfinex/quotes_BTCUSD_20251010
["timestamp","ask_amount","ask_price","bid_price","bid_amount"]
[1760056201894,0.24492474,121950.0,121940.0,1.51552789]
[1760056205943,0.24492474,121950.0,121940.0,1.00424699]
[1760056206156,0.24492474,121950.0,121940.0,1.51552789]
[1760056207275,0.24492474,121950.0,121940.0,1.28404789]
[1760056207483,0.24492474,121950.0,121940.0,1.51552789]
[1760056207968,0.24492474,121950.0,121940.0,1.28404789]
[1760056208187,0.24492474,121950.0,121940.0,1.51552789]
[1760056213101,0.24492474,121950.0,121940.0,1.28404789]
[1760056213363,0.24492474,121950.0,121940.0,1.51552789]
[1760056214409,0.24492474,121950.0,121940.0,1.00424699]
[1760056214635,0.24492474,121950.0,121940.0,1.28404789]
[1760056214853,0.24492474,121950.0,121940.0,1.00424699]
[1760056215064,0.24492474,121950.0,121940.0,1.51552789]
[1760056215905,0.24492474,121950.0,121940.0,1.28404789]
[1760056216111,0.24492474,121950.0,121940.0,1.51552789]
[1760056216318,0.24492474,121950.0,121940.0,1.28404789]
[1760056216735,0.24492474,121950.0,121940.0,1.51552789]
[1760056217151,0.24492474,121950.0,121940.0,1.28404789]
[1760056217384,0.24492474,121950.0,121940.0,1.51552789]
[1760056218400,0.24492474,121950.0,121940.0,0.77276699]
[1760056218827,0.24492474,121950.0,121940.0,1.02840744]
[1760056219028,0.24492474,121950.0,121940.0,1.51552789]
[1760056222982,0.24492474,121950.0,121940.0,1.28404789]
[1760056223427,0.24492474,121950.0,121940.0,1.51552789]
[1760056228719,0.24492474,121950.0,121940.0,1.28404789]
[1760056228926,0.24492474,121950.0,121940.0,1.51552789]
[1760056231672,0.24492474,121950.0,121940.0,0.57860001]
[1760056231876,0.24492474,121950.0,121940.0,0.63948829]
[1760056232084,0.24492474,121950.0,121940.0,0.84320829]
[1760056232302,0.24492474,121950.0,121940.0,1.11411874]
[1760056233154,0.24492474,121950.0,121940.0,1.12629874]
[1760056233364,0.24492474,121950.0,121940.0,1.20629554]
[1760056233974,0.24492474,121950.0,121940.0,0.95065509]
[1760056234880,0.40892638,121950.0,121940.0,0.95065509]
[1760056235085,0.24492474,121950.0,121940.0,0.71921509]
[1760056235286,0.24492474,121950.0,121940.0,0.95065509]
[1760056235710,0.40892638,121950.0,121940.0,0.21520001]
[1760056235963,0.40892638,121950.0,121940.0,0.61065509]
[1760056240792,0.40892638,121950.0,121940.0,0.53065829]
[1760056242284,0.24492474,121950.0,121940.0,0.78633874]
[1760056242482,0.24492474,121950.0,121940.0,0.81044874]
[1760056250587,0.24492474,121950.0,121940.0,0.55480829]
[1760056250790,0.24492474,121950.0,121940.0,0.81044874]
[1760056250990,0.24492474,121950.0,121940.0,0.89044554]
[1760056253265,0.24492474,121950.0,121940.0,0.63480509]
[1760056253406,0.24492474,121950.0,121940.0,0.89044554]
[1760056254920,0.24492474,121950.0,121940.0,0.63480509]
[1760056255122,0.24492474,121950.0,121940.0,0.89044554]
[1760056255333,0.40892638,121950.0,121940.0,0.89044554]
[1760056256767,0.40892638,121950.0,121940.0,0.63480509]
[1760056257178,0.40892638,121950.0,121940.0,0.89044554]
[1760056257387,0.40892638,121950.0,121940.0,0.55480829]
[1760056258315,0.40892638,121950.0,121940.0,0.53069829]
[1760056261803,0.40892638,121950.0,121940.0,0.29921829]
[1760056261945,0.40892638,121950.0,121940.0,0.53069829]
[1760056262391,0.40892638,121950.0,121940.0,0.60487121]
[1760056265045,0.40892638,121950.0,121940.0,0.53069829]
[1760056268121,0.24492474,121950.0,121940.0,0.29921829]
[1760056268352,0.47636474,121950.0,121940.0,0.55355829]
[1760056271506,0.40892638,121950.0,121940.0,0.32211829]
[1760056271713,0.64036638,121950.0,121940.0,0.55355829]
[1760056271911,0.64036638,121950.0,121940.0,0.63355509]
[1760056273047,0.40892638,121950.0,121940.0,0.40211509]
[1760056273249,0.40892638,121950.0,121940.0,0.63355509]
[1760056274264,0.24492474,121950.0,121940.0,0.63355509]
[1760056274461,0.47636474,121950.0,121940.0,0.63355509]
[1760056280025,0.64036638,121950.0,121940.0,0.55355829]
[1760056281796,0.40892638,121950.0,121940.0,0.32211829]
[1760056281977,0.64036638,121950.0,121940.0,0.55355829]
[1760056285363,0.64036638,121950.0,121940.0,0.53065829]
[1760056290573,0.47636474,121950.0,121940.0,0.53065829]
[1760056290792,0.47636474,121950.0,121940.0,0.55355829]
[1760056291685,0.64036638,121950.0,121940.0,0.55355829]
[1760056294635,0.64036638,121950.0,121940.0,0.62759021]
[1760056294837,0.64036638,121950.0,121940.0,0.55355829]
[1760056295671,0.47636474,121950.0,121940.0,0.55355829]
[1760056296360,0.64036638,121950.0,121940.0,0.55355829]
[1760056307737,0.74989446,121950.0,121940.0,0.02463115]
[1760056307943,0.98129446,121950.0,121940.0,0.02463115]
[1760056308384,0.16401508,121940.0,121930.0,8.286e-05]
[1760056308588,0.7499079,121940.0,121930.0,8.286e-05]
[1760056308994,0.7499079,121940.0,121930.0,0.0247203]
[1760056312448,0.9813479,121940.0,121930.0,8.286e-05]
[1760056312649,0.9813479,121940.0,121930.0,0.02472287]
[1760056313057,0.7499079,121940.0,121930.0,0.02472287]
[1760056313299,0.9813479,121940.0,121930.0,0.02472287]
[1760056313549,0.7499079,121940.0,121930.0,0.02472287]
[1760056313721,0.9813479,121940.0,121930.0,0.02472287]
[1760056313923,0.9813479,121940.0,121930.0,0.02608997]
[1760056315599,1.0666679,121940.0,121930.0,0.02608997]
[1760056318616,0.9813479,121940.0,121930.0,0.02608997]
[1760056318772,0.7499079,121940.0,121930.0,0.02608997]
[1760056319069,1.0666679,121940.0,121930.0,0.02608997]
[1760056319271,1.0666679,121940.0,121930.0,0.04510284]
[1760056319617,1.23738086,121940.0,121930.0,0.02608997]
[1760056320357,1.15206086,121940.0,121930.0,0.02608997]
[1760056320557,1.23738086,121940.0,121930.0,0.02608997]
[1760056320780,1.15206086,121940.0,121930.0,0.02608997]
[1760056320981,1.23738086,121940.0,121930.0,0.02608997]
[1760056321462,0.92062086,121940.0,121930.0,0.02608997]
[1760056321678,1.23738086,121940.0,121930.0,0.02608997]
[1760056322309,0.72569982,121940.0,121930.0,0.02608997]
[1760056322515,1.23738086,121940.0,121930.0,0.02608997]
[1760056323135,0.98154034,121940.0,121930.0,0.02608997]
[1760056323922,0.66478034,121940.0,121930.0,0.02608997]
[1760056324125,0.98154034,121940.0,121930.0,0.02608997]
[1760056326150,0.40893982,121940.0,121930.0,0.02608997]
[1760056326356,0.98154034,121940.0,121930.0,0.02608997]
[1760056326959,0.24492474,121940.0,121930.0,0.54349117]
[1760056327154,0.47636474,121940.0,121930.0,0.54349117]
[1760056327564,0.47636474,121940.0,121930.0,0.49773903]
[1760056327781,0.24492474,121940.0,121930.0,0.49773903]
[1760056328009,0.47636474,121940.0,121930.0,0.49773903]
[1760056328776,0.64037982,121940.0,121930.0,0.49773903]
[1760056329525,0.40893982,121940.0,121930.0,0.49773903]
[1760056329733,0.64037982,121940.0,121930.0,0.49773903]
[1760056330787,0.24492474,121940.0,121930.0,0.49773903]
[1760056330991,0.47636474,121940.0,121930.0,0.49773903]
[1760056331635,0.24492474,121940.0,121930.0,0.49773903]
[1760056331861,0.47636474,121940.0,121930.0,0.49773903]
[1760056332047,0.47636474,121940.0,121930.0,0.57773583]
[1760056332962,0.47636474,121940.0,121930.0,0.49773903]
[1760056333476,0.40893982,121940.0,121930.0,0.49773903]
[1760056333691,0.64037982,121940.0,121930.0,0.49773903]
[1760056338480,0.64037982,121940.0,121930.0,0.33371049]
[1760056339246,0.64037982,121940.0,121930.0,0.49773903]
[1760056340559,0.40893982,121940.0,121930.0,0.33371049]
[1760056340743,0.64037982,121940.0,121930.0,0.31008049]
[1760056342669,0.40893982,121940.0,121930.0,0.02608997]
[1760056342845,1.00061766,121940.0,121930.0,0.02608997]
[1760056343002,1.15206086,121940.0,121930.0,0.02608997]
[1760056343616,1.25958344,121940.0,121930.0,0.00144996]
[1760056343827,1.36838559,121940.0,121930.0,0.00144996]
[1760056344031,1.59982559,121940.0,121930.0,0.00144996]
[1760056344768,1.67982239,121940.0,121930.0,0.00144996]
[1760056344930,1.65517972,121940.0,121930.0,0.00144996]
[1760056345368,1.65617972,121940.0,121930.0,0.00144996]
[1760056346530,1.91202024,121940.0,121930.0,0.00144996]
[1760056347354,1.65617972,121940.0,121930.0,0.00144996]
[1760056347855,1.91202024,121940.0,121930.0,0.00144996]
[1760056348268,1.83202344,121940.0,121930.0,0.00144996]
[1760056348482,1.06450188,121940.0,121930.0,0.00144996]
[1760056348916,1.57618292,121940.0,121930.0,0.00144996]
[1760056349325,1.34474292,121940.0,121930.0,0.00144996]
[1760056349509,1.57618292,121940.0,121930.0,0.00144996]
[1760056353114,1.34474292,121940.0,121930.0,0.00144996]
[1760056353327,2.00286292,121940.0,121930.0,0.00144996]
[1760056353609,2.08285972,121940.0,121930.0,0.00144996]
[1760056354650,1.34474292,121940.0,121930.0,0.00144996]
[1760056354867,2.00290292,121940.0,121930.0,0.00144996]
[1760056355068,1.09188064,121940.0,121930.0,0.00144996]
[1760056355276,0.58136012,121940.0,121930.0,0.00144996]
[1760056355480,1.06868064,121940.0,121930.0,0.00144996]
[1760056357147,1.32452116,121940.0,121930.0,0.00144996]
[1760056357891,1.06868064,121940.0,121930.0,0.00144996]
[1760056361252,1.14867744,121940.0,121930.0,0.00144996]
[1760056361457,1.06868064,121940.0,121930.0,0.00144996]
[1760056370386,1.0657024,121940.0,121930.0,0.00144996]
[1760056370743,0.7489024,121940.0,121930.0,0.00144996]
[1760056370957,1.32154292,121940.0,121930.0,0.00144996]
[1760056371215,1.32922579,121940.0,121930.0,0.00144996]
[1760056371412,1.32926579,121940.0,121930.0,0.00144996]
[1760056371955,1.09774579,121940.0,121930.0,0.00144996]
[1760056372155,1.32158292,121940.0,121930.0,0.00144996]
[1760056372679,1.23626292,121940.0,121930.0,0.00144996]
[1760056372881,1.32158292,121940.0,121930.0,0.00144996]
[1760056378446,1.32926472,121940.0,121930.0,0.00144996]
[1760056379771,0.50074368,121940.0,121930.0,0.00144996]
[1760056380123,1.32922472,121940.0,121930.0,0.00144996]
[1760056380615,0.7565842,121940.0,121930.0,0.00144996]
[1760056380825,1.0733842,121940.0,121930.0,0.00144996]
[1760056381503,0.81754368,121940.0,121930.0,0.00144996]
[1760056381686,0.58606368,121940.0,121930.0,0.00144996]
[1760056381886,0.81754368,121940.0,121930.0,0.00144996]
[1760056382096,0.80986188,121940.0,121930.0,0.00144996]
[1760056382450,0.40993982,121940.0,121930.0,0.00144996]
[1760056382662,0.72685982,121940.0,121930.0,0.00144996]
[1760056383299,0.40993982,121940.0,121930.0,0.01744996]
[1760056383500,0.72685982,121940.0,121930.0,0.00144996]
[1760056384633,0.40993982,121940.0,121930.0,0.00144996]
[1760056384837,0.72681982,121940.0,121930.0,0.00144996]
[1760056385613,0.40993982,121940.0,121930.0,0.00144996]
[1760056385783,0.72681982,121940.0,121930.0,0.00144996]
[1760056385982,0.40993982,121940.0,121930.0,0.01744996]
[1760056386353,0.33124474,121940.0,121930.0,0.23707523]
[1760056386601,0.24592474,121940.0,121930.0,0.23707523]
[1760056387035,0.47752474,121940.0,121930.0,0.57820413]
[1760056387242,0.47752474,121940.0,121930.0,0.23707523]
[1760056387697,0.64153982,121940.0,121930.0,0.2155085]
[1760056388320,0.40993982,121940.0,121930.0,0.2155085]
[1760056388530,0.64157982,121940.0,121930.0,0.2155085]
[1760056388954,0.64157982,121940.0,121930.0,0.05147996]
[1760056389363,0.64153982,121940.0,121930.0,0.2155085]
[1760056391006,0.63653982,121940.0,121930.0,0.02881996]
[1760056393755,0.63653982,121940.0,121930.0,0.06073043]
[1760056393973,0.63653982,121940.0,121930.0,0.00144996]
[1760056395032,0.63153982,121940.0,121930.0,0.00144996]
[1760056395570,0.63153982,121940.0,121930.0,0.01744996]
[1760056398166,0.63153982,121940.0,121930.0,0.00144996]
[1760056398333,0.62653982,121940.0,121930.0,0.00144996]
[1760056399234,0.39493982,121940.0,121930.0,0.00144996]
[1760056399439,0.62649982,121940.0,121930.0,0.00144996]
[1760056401134,0.62645982,121940.0,121930.0,0.00144996]
[1760056401734,0.62145982,121940.0,121930.0,0.00144996]
[1760056404533,0.73106872,121940.0,121930.0,0.00144996]
[1760056404757,0.96258872,121940.0,121930.0,0.00144996]
[1760056405223,0.95258872,121940.0,121930.0,0.00144996]
[1760056405450,0.95266872,121940.0,121930.0,0.00144996]
[1760056406123,1.03579078,121940.0,121930.0,0.00144996]
[1760056407018,0.46306188,121940.0,121930.0,0.00144996]
[1760056407225,0.69685982,121940.0,121930.0,0.02881996]
[1760056407429,0.69685982,121940.0,121930.0,0.05150855]
[1760056408429,0.69685982,121940.0,121930.0,0.00144996]
[1760056408942,0.68685982,121940.0,121930.0,0.00144996]
[1760056409732,0.36993982,121940.0,121930.0,0.00144996]
[1760056409956,0.68681982,121940.0,121930.0,0.00144996]
[1760056412353,0.67681982,121940.0,121930.0,0.00144996]
[1760056412977,0.35993982,121940.0,121930.0,0.00144996]
[1760056413229,0.44525982,121940.0,121930.0,0.01685996]
[1760056413526,0.67681982,121940.0,121930.0,0.10773544]
[1760056413728,0.67681982,121940.0,121930.0,0.08464544]
[1760056415198,0.67681982,121940.0,121930.0,0.02903996]
[1760056417618,0.35993982,121940.0,121930.0,0.02903996]
[1760056417797,0.59153982,121940.0,121930.0,0.02903996]
[1760056419012,0.35993982,121940.0,121930.0,0.02903996]
[1760056419213,0.59153982,121940.0,121930.0,0.02903996]
[1760056421235,0.59153982,121940.0,121930.0,0.08837032]
[1760056423104,0.59153982,121940.0,121930.0,0.02903996]
[1760056424384,0.35993982,121940.0,121930.0,0.02903996]
[1760056424589,0.59149982,121940.0,121930.0,0.02903996]
[1760056426065,0.35993982,121940.0,121930.0,0.02903996]
[1760056426285,0.59149982,121940.0,121930.0,0.05362996]
[1760056426510,0.59149982,121940.0,121930.0,0.02903996]
[1760056426731,0.59149982,121940.0,121930.0,0.00144996]
[1760056427365,0.35993982,121940.0,121930.0,0.00144996]
[1760056427568,0.59145982,121940.0,121930.0,0.00144996]
[1760056429225,0.93258872,121940.0,121930.0,0.00144996]
[1760056430952,0.59145982,121940.0,121930.0,0.00144996]
[1760056434929,0.35993982,121940.0,121930.0,0.02959996]
[1760056435138,0.35993982,121940.0,121930.0,0.11372672]
[1760056435344,0.59141982,121940.0,121930.0,0.11372672]
[1760056437412,0.59141982,121940.0,121930.0,0.27775526]
[1760056437898,0.59141982,121940.0,121930.0,0.27650526]
[1760056438114,0.59141982,121940.0,121930.0,0.11247672]
[1760056438968,0.59141982,121940.0,121930.0,0.08788672]
[1760056440155,0.59141982,121940.0,121930.0,0.11247672]
[1760056440545,0.59141982,121940.0,121930.0,0.27650526]
[1760056441575,0.59141982,121940.0,121930.0,0.53227901]
[1760056442509,0.35993982,121940.0,121930.0,0.53227901]
[1760056442710,0.59141982,121940.0,121930.0,0.53227901]
[1760056443854,0.59141982,121940.0,121930.0,0.30871371]
[1760056444225,0.35993982,121940.0,121930.0,0.02834996]
[1760056444626,0.59137982,121940.0,121930.0,0.02834996]
[1760056445283,0.35993982,121940.0,121930.0,0.02834996]
[1760056445699,0.59137982,121940.0,121930.0,0.02834996]
[1760056448588,0.59137982,121940.0,121930.0,0.1923785]
[1760056448789,0.59137982,121940.0,121930.0,0.44815225]
[1760056448996,0.35993982,121940.0,121930.0,0.44815225]
[1760056449142,0.59137982,121940.0,121930.0,0.44815225]
[1760056450808,0.59137982,121940.0,121930.0,0.52814905]
[1760056451021,0.59137982,121940.0,121930.0,0.44815225]
[1760056451218,0.59137982,121940.0,121930.0,0.1923785]
[1760056451881,0.59137982,121940.0,121930.0,0.02834996]
[1760056452117,0.35993982,121940.0,121930.0,0.02834996]
[1760056452346,1.10292732,121940.0,121930.0,0.00019996]
[1760056452754,0.87148732,121940.0,121930.0,0.00019996]
[1760056453173,0.95460938,121940.0,121930.0,0.00019996]
[1760056453390,1.18604938,121940.0,121930.0,0.00019996]
[1760056453582,0.95460938,121940.0,121930.0,0.00019996]
[1760056453840,1.18608938,121940.0,121930.0,0.00019996]
[1760056455208,0.67454188,121940.0,121930.0,0.00019996]
[1760056455413,1.19377645,121940.0,121930.0,0.00019996]
[1760056456209,1.27377325,121940.0,121930.0,0.00019996]
[1760056457290,1.26608618,121940.0,121930.0,0.00019996]
[1760056457650,1.60608618,121940.0,121930.0,0.00019996]
[1760056458025,1.29460938,121940.0,121930.0,0.00019996]
[1760056458218,1.61144938,121940.0,121930.0,0.00019996]
[1760056458936,1.29460938,121940.0,121930.0,0.00019996]
[1760056459132,1.61144938,121940.0,121930.0,0.00019996]
[1760056459715,1.29460938,121940.0,121930.0,0.00019996]
[1760056459859,1.61144938,121940.0,121930.0,0.00019996]
[1760056464663,1.29460938,121940.0,121930.0,0.00019996]
[1760056464856,1.52608938,121940.0,121930.0,0.00019996]
[1760056465065,1.61140938,121940.0,121930.0,0.00019996]
[1760056465803,1.69140618,121940.0,121930.0,0.00019996]
[1760056466215,1.61140938,121940.0,121930.0,0.00019996]
[1760056468952,1.29460938,121940.0,121930.0,0.00019996]
[1760056469368,1.61140938,121940.0,121930.0,0.00019996]
[1760056469574,1.37992938,121940.0,121930.0,0.00019996]
[1760056469779,1.61140938,121940.0,121930.0,0.00019996]
[1760056471505,1.69140618,121940.0,121930.0,0.00019996]
[1760056471820,1.61140938,121940.0,121930.0,0.00019996]
[1760056472135,1.29460938,121940.0,121930.0,0.00019996]
[1760056472313,1.61140938,121940.0,121930.0,0.00019996]
[1760056474059,1.52608938,121940.0,121930.0,0.00019996]
[1760056474192,1.61140938,121940.0,121930.0,0.00019996]
[1760056474971,1.09986188,121940.0,121930.0,0.00019996]
[1760056475167,1.61140938,121940.0,121930.0,0.00019996]
[1760056477179,1.61908939,121940.0,121930.0,0.00019996]
[1760056478378,1.30228939,121940.0,121930.0,0.00019996]
[1760056478532,1.61908939,121940.0,121930.0,0.00019996]
[1760056481133,1.63445879,121940.0,121930.0,0.00019996]
[1760056483553,1.63743703,121940.0,121930.0,0.00019996]
[1760056486175,1.63744785,121940.0,121930.0,0.00019996]
[1760056486834,1.63744792,121940.0,121930.0,0.00019996]
[1760056490982,1.40596792,121940.0,121930.0,0.00019996]
[1760056491218,1.71744472,121940.0,121930.0,0.00019996]
[1760056492958,1.71745779,121940.0,121930.0,0.00019996]
[1760056493249,1.71447955,121940.0,121930.0,0.00019996]
[1760056494141,1.31768275,121940.0,121930.0,0.00019996]
[1760056494342,1.147229,121940.0,121930.0,0.00019996]
[1760056494588,1.40300275,121940.0,121930.0,0.00019996]
[1760056494790,1.63448275,121940.0,121930.0,0.00019996]
[1760056496279,1.40300275,121940.0,121930.0,0.00019996]
[1760056496685,1.63448275,121940.0,121930.0,0.00019996]
[1760056498156,1.71447955,121940.0,121930.0,0.00019996]
[1760056498397,1.71745779,121940.0,121930.0,0.00019996]
[1760056498687,1.63746099,121940.0,121930.0,0.00019996]
[1760056501336,1.63745744,121940.0,121930.0,0.00019996]
[1760056503379,1.12590951,121940.0,121930.0,0.00019996]
[1760056503585,1.46709786,121940.0,121930.0,0.00019996]
[1760056509555,0.1640689,121900.0,121890.0,0.01152]
[1760056509793,0.3590441,121900.0,121890.0,0.05181437]
[1760056510007,0.5905241,121900.0,121890.0,0.05181437]
[1760056510212,0.5905241,121900.0,121890.0,0.02717]
[1760056511419,0.3590441,121900.0,121890.0,0.02717]
[1760056511632,0.5905241,121900.0,121890.0,0.02717]
[1760056511839,0.3590441,121900.0,121890.0,0.02717]
[1760056512042,0.5905241,121900.0,121890.0,0.02717]
[1760056512672,0.5905241,121900.0,121890.0,0.02817]
[1760056512861,0.3590441,121900.0,121890.0,0.02817]
[1760056513057,0.5905241,121900.0,121890.0,0.02817]
[1760056513224,0.93171245,121900.0,121890.0,0.001]
[1760056513568,0.5905241,121900.0,121890.0,0.001]
[1760056513788,0.5905241,121900.0,121890.0,0.002]
[1760056514172,0.5905241,121900.0,121890.0,0.001]
[1760056514616,0.3590441,121900.0,121890.0,0.001]
[1760056514815,0.5905241,121900.0,121890.0,0.001]
[1760056515101,0.5905241,121900.0,121890.0,0.00304555]
[1760056515310,0.5905241,121900.0,121890.0,0.00204555]
[1760056518324,0.93171245,121900.0,121890.0,0.00204555]
[1760056524171,0.78335451,121900.0,121890.0,0.00204555]
[1760056524394,1.01483451,121900.0,121890.0,0.00204555]
[1760056526016,1.01487451,121900.0,121890.0,0.00204555]
[1760056527220,0.78335451,121900.0,121890.0,0.00204555]
[1760056527445,1.10019451,121900.0,121890.0,0.00204555]
[1760056527891,1.01487451,121900.0,121890.0,0.00204555]
[1760056528068,1.10019451,121900.0,121890.0,0.00204555]
[1760056531010,0.78335451,121900.0,121890.0,0.00204555]
[1760056531238,1.10023451,121900.0,121890.0,0.00204555]
[1760056531564,0.78335451,121900.0,121890.0,0.00204555]
[1760056531816,1.10023451,121900.0,121890.0,0.00204555]
[1760056533927,1.01487451,121900.0,121890.0,0.00204555]
[1760056534109,1.10023451,121900.0,121890.0,0.00204555]
[1760056536295,0.78335451,121900.0,121890.0,0.00204555]
[1760056536503,1.10023451,121900.0,121890.0,0.00204555]
[1760056537667,1.01487451,121900.0,121890.0,0.00204555]
[1760056537872,1.10023451,121900.0,121890.0,0.00204555]
[1760056541439,1.10321275,121900.0,121890.0,0.00204555]
[1760056551857,1.10023451,121900.0,121890.0,0.00204555]
[1760056556841,1.10321275,121900.0,121890.0,0.00204555]
[1760056557868,0.78633275,121900.0,121890.0,0.00204555]
[1760056558051,1.10321275,121900.0,121890.0,0.00204555]
[1760056560752,0.78633275,121900.0,121890.0,0.00204555]
[1760056560968,1.10321275,121900.0,121890.0,0.00204555]
[1760056563570,1.01803351,121900.0,121890.0,0.00204555]
[1760056564396,0.4451444,121900.0,121890.0,0.00204555]
[1760056564596,0.28331344,121900.0,121890.0,0.47491702]
[1760056564817,0.19795344,121900.0,121890.0,0.55491382]
[1760056565026,0.28331344,121900.0,121890.0,0.33193832]
[1760056565227,0.51483344,121900.0,121890.0,0.58794743]
[1760056565766,0.19795344,121900.0,121890.0,0.58794743]
[1760056565954,0.59354234,121900.0,121890.0,0.58794743]
[1760056566170,0.36202234,121900.0,121890.0,0.05504261]
[1760056566350,0.59354234,121900.0,121890.0,0.05504261]
[1760056567032,0.59350234,121900.0,121890.0,0.05504261]
[1760056572439,0.84951145,121900.0,121890.0,0.03907261]
[1760056573056,0.84951145,121900.0,121890.0,0.05504261]
[1760056573194,0.59350234,121900.0,121890.0,0.05504261]
[1760056573626,0.36202234,121900.0,121890.0,0.05504261]
[1760056573839,0.67886234,121900.0,121890.0,0.55072354]
[1760056577453,0.36202234,121900.0,121890.0,0.55072354]
[1760056577663,0.67886234,121900.0,121890.0,0.55072354]
[1760056578342,0.67886234,121900.0,121890.0,0.38664118]
[1760056578689,0.59350234,121900.0,121890.0,0.38664118]
[1760056579736,0.36202234,121900.0,121890.0,0.38664118]
[1760056579954,0.59350234,121900.0,121890.0,0.55072354]
[1760056580319,0.36202234,121900.0,121890.0,0.55072354]
[1760056580486,0.59350234,121900.0,121890.0,0.55072354]
[1760056580889,0.19795344,121900.0,121890.0,0.55072354]
[1760056581109,0.59350234,121900.0,121890.0,0.55072354]
[1760056581314,0.19795344,121900.0,121890.0,0.55072354]
[1760056581509,0.1949752,121900.0,121890.0,0.55072354]
[1760056581842,0.4264552,121900.0,121890.0,0.55072354]
[1760056584778,0.1949752,121900.0,121890.0,0.88985471]
[1760056584984,0.4264552,121900.0,121890.0,0.6338456]
[1760056585200,0.4264552,121900.0,121890.0,0.37783649]
[1760056585378,0.4264552,121900.0,121890.0,0.6338456]
[1760056585617,0.1949752,121900.0,121890.0,0.37783649]
[1760056585820,0.4264552,121900.0,121890.0,0.6338456]
[1760056586225,0.1949752,121900.0,121890.0,0.6338456]
[1760056586432,0.4264552,121900.0,121890.0,0.6338456]
[1760056592683,0.1949752,121900.0,121890.0,0.6338456]
[1760056592887,0.4264152,121900.0,121890.0,0.6338456]
[1760056601833,0.1949752,121900.0,121890.0,0.6338456]
[1760056602054,0.84649321,121900.0,121890.0,0.05504261]
[1760056602534,0.61505321,121900.0,121890.0,0.05504261]
[1760056602759,0.84649321,121900.0,121890.0,0.05504261]
[1760056604389,0.84649321,121900.0,121890.0,0.02669261]
[1760056604994,0.84649321,121900.0,121890.0,0.00204555]
[1760056610613,0.61505321,121900.0,121890.0,0.00204555]
[1760056610819,0.84649321,121900.0,121890.0,0.01713555]
[1760056611425,0.3590441,121900.0,121890.0,0.07858909]
[1760056611595,0.6758041,121900.0,121890.0,0.10267909]
[1760056611784,0.93181321,121900.0,121890.0,0.07858909]
[1760056612796,0.6758041,121900.0,121890.0,0.02870555]
[1760056613265,0.4443641,121900.0,121890.0,0.02870555]
[1760056613424,0.6758041,121900.0,121890.0,0.02870555]
[1760056617201,0.93181321,121900.0,121890.0,0.02870555]
[1760056617825,0.93181321,121900.0,121890.0,0.00204555]
[1760056622139,0.70037321,121900.0,121890.0,0.00204555]
[1760056622273,0.6758041,121900.0,121890.0,0.01713555]
[1760056622638,0.93181321,121900.0,121890.0,0.01713555]
[1760056623073,0.70037321,121900.0,121890.0,0.01713555]
[1760056623269,0.93181321,121900.0,121890.0,0.01713555]
[1760056623878,0.61505321,121900.0,121890.0,0.06693521]
[1760056624118,0.93181321,121900.0,121890.0,0.06693521]
[1760056624321,0.93181321,121900.0,121890.0,0.01713555]
[1760056624599,0.70037321,121900.0,121890.0,0.00204555]
[1760056624797,0.93181321,121900.0,121890.0,0.00204555]
[1760056625511,0.6758041,121900.0,121890.0,0.00204555]
[1760056627068,1.01712135,121900.0,121890.0,0.00204555]
[1760056627458,0.6758041,121900.0,121890.0,0.00204555]
[1760056631073,1.01712135,121900.0,121890.0,0.00204555]
[1760056633371,0.78568135,121900.0,121890.0,0.00204555]
[1760056633580,1.01712135,121900.0,121890.0,0.00204555]
[1760056634333,0.6758041,121900.0,121890.0,0.00204555]
[1760056634536,1.01712135,121900.0,121890.0,0.00204555]
[1760056636990,0.78568135,121900.0,121890.0,0.00204555]
[1760056637179,1.01712135,121900.0,121890.0,0.00204555]
[1760056647705,1.01712135,121900.0,121890.0,0.0266932]
[1760056652380,0.70036135,121900.0,121890.0,0.0266932]
[1760056652581,1.01716135,121900.0,121890.0,0.0266932]
[1760056666964,1.10028341,121900.0,121890.0,0.0266932]
[1760056667134,1.10028341,121900.0,121890.0,0.00204555]
[1760056667893,1.20884341,121900.0,121890.0,0.00204555]
[1760056668077,1.44028341,121900.0,121890.0,0.00204555]
[1760056669317,1.5011793,121900.0,121890.0,0.00204555]
[1760056670433,0.16409583,121880.0,121870.0,0.02465077]
[1760056670667,0.16413623,121850.0,121840.0,0.01221]
[1760056670866,0.39581623,121850.0,121840.0,0.02837]
[1760056671074,0.16413623,121850.0,121840.0,0.05219]
[1760056671274,0.39581623,121850.0,121840.0,0.23275467]
[1760056671521,0.39581623,121850.0,121840.0,0.32099201]
[1760056671944,0.39586665,121850.0,121840.0,0.32099201]
[1760056672143,0.39586665,121850.0,121840.0,0.32942227]
[1760056672348,0.39586665,121850.0,121840.0,0.32099201]
[1760056673698,0.39586665,121850.0,121840.0,0.24199521]
[1760056673897,0.39586665,121850.0,121840.0,0.58331246]
[1760056674097,0.16418665,121850.0,121840.0,0.58331246]
[1760056674221,0.39582665,121850.0,121840.0,0.58331246]
[1760056675750,0.39582665,121850.0,121840.0,0.58431246]
[1760056676204,0.16418665,121850.0,121840.0,0.58431246]
[1760056676408,0.39582665,121850.0,121840.0,0.59396012]
[1760056676638,0.39582665,121850.0,121840.0,0.59651854]
[1760056680836,0.39582665,121850.0,121840.0,0.25520129]
[1760056681039,0.39582665,121850.0,121840.0,0.58687088]
[1760056681246,0.16418665,121850.0,121840.0,0.58687088]
[1760056681375,0.39582665,121850.0,121840.0,0.58687088]
[1760056681933,0.23169042,121850.0,121840.0,0.58687088]
[1760056682141,0.23169042,121850.0,121840.0,0.66403526]
[1760056682347,5.042e-05,121850.0,121840.0,0.66403526]
[1760056682472,0.23169042,121850.0,121840.0,0.66403526]
[1760056682931,5.042e-05,121850.0,121840.0,0.66403526]
[1760056683215,0.23169042,121850.0,121840.0,0.66403526]
[1760056684391,5.042e-05,121850.0,121840.0,0.66403526]
[1760056684605,0.23169042,121850.0,121840.0,0.66403526]
[1760056685661,0.23169042,121850.0,121840.0,0.83492111]
[1760056686403,5.042e-05,121850.0,121840.0,0.83492111]
[1760056686643,5.042e-05,121850.0,121840.0,1.17414472]
[1760056686883,5.042e-05,121850.0,121840.0,1.40578472]
[1760056687097,5.042e-05,121850.0,121840.0,1.14968317]
[1760056687962,5.042e-05,121850.0,121840.0,1.54429662]
[1760056688368,5.042e-05,121850.0,121840.0,1.77593662]
[1760056689809,0.00869198,121870.0,121860.0,0.67632586]
[1760056690013,0.20366712,121870.0,121860.0,0.76762266]
[1760056690235,0.20366712,121870.0,121860.0,0.80694266]
[1760056691057,0.20366712,121870.0,121860.0,0.83159345]
[1760056691828,0.42661514,121870.0,121860.0,0.83159345]
[1760056694325,0.42661514,121870.0,121860.0,0.5754919]
[1760056695266,0.19497514,121870.0,121860.0,0.83312825]
[1760056695478,0.42657514,121870.0,121860.0,0.83312825]
[1760056696107,0.19497514,121870.0,121860.0,0.83312825]
[1760056696236,0.42657514,121870.0,121860.0,0.83312825]
[1760056696915,0.42657514,121870.0,121860.0,0.32092515]
[1760056697123,0.42657514,121870.0,121860.0,0.83312825]
[1760056700545,0.19497514,121870.0,121860.0,0.83312825]
[1760056700753,0.42653514,121870.0,121860.0,0.83312825]
[1760056701127,0.19497514,121870.0,121860.0,0.83312825]
[1760056701332,0.42653514,121870.0,121860.0,0.83312825]